[Event "Titled Tuesday Blitz April 19 Late 2022"]
[White "Kanyamarala, Tarun"]
[Black "Lima, Kleyton Alcantara"]
[WhiteFideId "45004714"]
[BlackFideId "22718397"]
[WhiteElo "2177"]
[BlackElo "1951"]
[Result "1-0"]
[Round "02"]
[TimeControl "180+1"]
[Date "2022.04.19"]
[WhiteClock "0:01:00"]
[BlackClock "0:00:04"]

1. d4 {[%clk 0:03:00]}  Nf6 {[%clk 0:02:59]} 2. Nc3 {[%clk 0:03:00]}  d5 {[%clk 0:02:59]} 3. Bf4 {[%clk 0:03:00]}  e6 {[%clk 0:02:58]} 4. Nb5 {[%clk 0:03:00]}  Na6 {[%clk 0:02:56]} 5. e3 {[%clk 0:02:59]}  c6 {[%clk 0:02:56]} 6. Nc3 {[%clk 0:02:58]}  Nc7 {[%clk 0:02:54]} 7. Nf3 {[%clk 0:02:57]}  Bb4 {[%clk 0:02:54]} 8. Bd3 {[%clk 0:02:53]}  Ne4 {[%clk 0:02:53]} 9. Bxe4 {[%clk 0:02:37]}  dxe4 {[%clk 0:02:53]} 10. Nd2 {[%clk 0:02:38]}  Bxc3 {[%clk 0:02:41]} 11. bxc3 {[%clk 0:02:37]}  f5 {[%clk 0:02:34]} 12. c4 {[%clk 0:02:27]}  g5 {[%clk 0:02:29]} 13. Be5 {[%clk 0:02:26]}  O-O {[%clk 0:02:27]} 14. h4 {[%clk 0:02:23]}  g4 {[%clk 0:02:23]} 15. Nf1 {[%clk 0:02:22]}  b5 {[%clk 0:02:20]} 16. cxb5 {[%clk 0:02:16]}  cxb5 {[%clk 0:02:11]} 17. Ng3 {[%clk 0:02:13]}  Nd5 {[%clk 0:02:09]} 18. Ne2 {[%clk 0:02:13]}  Ba6 {[%clk 0:01:56]} 19. a3 {[%clk 0:02:09]}  Rc8 {[%clk 0:01:50]} 20. g3 {[%clk 0:02:03]}  b4 {[%clk 0:01:31]} 21. O-O {[%clk 0:02:02]}  Bxe2 {[%clk 0:01:23]} 22. Qxe2 {[%clk 0:02:00]}  a5 {[%clk 0:01:20]} 23. axb4 {[%clk 0:01:58]}  Nxb4 {[%clk 0:01:18]} 24. Rfc1 {[%clk 0:01:38]}  Rf7 {[%clk 0:01:09]} 25. Qb5 {[%clk 0:01:34]}  Nxc2 {[%clk 0:01:00]} 26. Rxa5 {[%clk 0:01:26]}  h5 {[%clk 0:00:16]} 27. Qb3 {[%clk 0:01:20]}  Qxa5 {[%clk 0:00:09]} 28. Qxe6 {[%clk 0:01:19]}  Qd8 {[%clk 0:00:02]} 29. Qg6+ {[%clk 0:01:13]}  Kf8 {[%clk 0:00:02]} 30. Bd6+ {[%clk 0:01:08]}  Ke8 {[%clk 0:00:02]} 31. Qe6+ {[%clk 0:01:00]}  Re7 {[%clk 0:00:02]} 32. Bxe7 {[%clk 0:01:00]}  Qxe7 {[%clk 0:00:03]} 33. Qxc8+ {[%clk 0:01:00]}  Kf7 {[%clk 0:00:04]} 34. Rxc2 {[%clk 0:01:00]} 1-0


[Site "https://www.chess.com"]

[Event "Titled Tuesday Blitz April 19 Late 2022"]
[White "Koc, Przemyslaw"]
[Black "Lock, Gavin R"]
[WhiteFideId "1109081"]
[BlackFideId "408646"]
[WhiteElo "2141"]
[BlackElo "2104"]
[Result "1-0"]
[Round "02"]
[TimeControl "180+1"]
[Date "2022.04.19"]
[WhiteClock "0:00:33"]
[BlackClock "0:00:01"]

1. d4 {[%clk 0:03:00]}  d5 {[%clk 0:02:59]} 2. Nf3 {[%clk 0:03:00]}  Nf6 {[%clk 0:02:59]} 3. e3 {[%clk 0:03:00]}  c5 {[%clk 0:02:59]} 4. b3 {[%clk 0:03:00]}  cxd4 {[%clk 0:02:58]} 5. exd4 {[%clk 0:03:00]}  Nc6 {[%clk 0:02:58]} 6. Bd3 {[%clk 0:02:59]}  Bg4 {[%clk 0:02:56]} 7. Bb2 {[%clk 0:02:58]}  Rc8 {[%clk 0:02:47]} 8. a3 {[%clk 0:02:58]}  e6 {[%clk 0:02:47]} 9. Nbd2 {[%clk 0:02:56]}  Be7 {[%clk 0:02:24]} 10. h3 {[%clk 0:02:55]}  Bh5 {[%clk 0:02:23]} 11. O-O {[%clk 0:02:54]}  O-O {[%clk 0:02:24]} 12. Qe2 {[%clk 0:02:52]}  Re8 {[%clk 0:01:52]} 13. Rac1 {[%clk 0:02:45]}  Bd6 {[%clk 0:01:48]} 14. g4 {[%clk 0:02:45]}  Bg6 {[%clk 0:01:48]} 15. Ne5 {[%clk 0:02:45]}  Qb6 {[%clk 0:01:08]} 16. Nxc6 {[%clk 0:02:08]}  bxc6 {[%clk 0:00:45]} 17. f4 {[%clk 0:02:08]}  Bxd3 {[%clk 0:00:43]} 18. cxd3 {[%clk 0:02:03]}  Nd7 {[%clk 0:00:40]} 19. Kh1 {[%clk 0:01:52]}  a5 {[%clk 0:00:27]} 20. a4 {[%clk 0:01:36]}  Bb4 {[%clk 0:00:25]} 21. Nf3 {[%clk 0:01:35]}  Bd6 {[%clk 0:00:17]} 22. Qd1 {[%clk 0:01:30]}  Rb8 {[%clk 0:00:14]} 23. Bc3 {[%clk 0:01:20]}  Rec8 {[%clk 0:00:14]} 24. Ne5 {[%clk 0:01:17]}  Nf8 {[%clk 0:00:12]} 25. Rb1 {[%clk 0:01:13]}  f6 {[%clk 0:00:11]} 26. Nf3 {[%clk 0:01:12]}  Bb4 {[%clk 0:00:12]} 27. Bxb4 {[%clk 0:01:10]}  Qxb4 {[%clk 0:00:12]} 28. Qe2 {[%clk 0:01:11]}  Qd6 {[%clk 0:00:08]} 29. Nh4 {[%clk 0:01:06]}  Rb4 {[%clk 0:00:07]} 30. Qe3 {[%clk 0:00:59]}  Rcb8 {[%clk 0:00:07]} 31. f5 {[%clk 0:00:59]}  e5 {[%clk 0:00:06]} 32. dxe5 {[%clk 0:00:58]}  Qxe5 {[%clk 0:00:07]} 33. Qxe5 {[%clk 0:00:57]}  fxe5 {[%clk 0:00:08]} 34. Nf3 {[%clk 0:00:56]}  Nd7 {[%clk 0:00:07]} 35. Nd2 {[%clk 0:00:50]}  h6 {[%clk 0:00:07]} 36. Rbc1 {[%clk 0:00:50]}  R8b6 {[%clk 0:00:05]} 37. Rc2 {[%clk 0:00:47]}  Rd4 {[%clk 0:00:05]} 38. Rc3 {[%clk 0:00:46]}  Kf7 {[%clk 0:00:05]} 39. Rfc1 {[%clk 0:00:46]}  Ke7 {[%clk 0:00:02]} 40. Nf3 {[%clk 0:00:44]}  Rf4 {[%clk 0:00:01]} 41. Kg2 {[%clk 0:00:44]}  Kd6 {[%clk 0:00:01]} 42. Nd2 {[%clk 0:00:35]}  Rfb4 {[%clk 0:00:01]} 43. Kg3 {[%clk 0:00:33]} 1-0


[Site "https://www.chess.com"]

[Event "Titled Tuesday Blitz April 19 Late 2022"]
[White "Kosteniuk, Alexandra"]
[Black "Sarana, Alexey"]
[WhiteFideId "4128125"]
[BlackFideId "24133795"]
[WhiteElo "2469"]
[BlackElo "2666"]
[Result "0-1"]
[Round "02"]
[TimeControl "180+1"]
[Date "2022.04.19"]
[WhiteClock "0:00:17"]
[BlackClock "0:01:07"]

1. e4 {[%clk 0:03:00]}  c5 {[%clk 0:02:59]} 2. c3 {[%clk 0:03:01]}  d5 {[%clk 0:02:57]} 3. exd5 {[%clk 0:03:01]}  Qxd5 {[%clk 0:02:57]} 4. d4 {[%clk 0:03:02]}  Nc6 {[%clk 0:02:58]} 5. Nf3 {[%clk 0:03:02]}  Bf5 {[%clk 0:02:59]} 6. Be3 {[%clk 0:02:59]}  cxd4 {[%clk 0:02:58]} 7. Nxd4 {[%clk 0:02:56]}  Nf6 {[%clk 0:02:56]} 8. Nxf5 {[%clk 0:02:55]}  Qxf5 {[%clk 0:02:57]} 9. Bd3 {[%clk 0:02:48]}  Qd5 {[%clk 0:02:54]} 10. O-O {[%clk 0:02:43]}  O-O-O {[%clk 0:02:54]} 11. Bc2 {[%clk 0:02:41]}  e5 {[%clk 0:02:49]} 12. Nd2 {[%clk 0:02:32]}  Bc5 {[%clk 0:02:45]} 13. Bb3 {[%clk 0:02:32]}  Qd6 {[%clk 0:02:41]} 14. Nc4 {[%clk 0:02:31]}  Qxd1 {[%clk 0:02:38]} 15. Raxd1 {[%clk 0:02:32]}  Bxe3 {[%clk 0:02:37]} 16. Nxe3 {[%clk 0:02:32]}  Rhf8 {[%clk 0:02:25]} 17. Nf5 {[%clk 0:02:32]}  Ne4 {[%clk 0:02:13]} 18. Bd5 {[%clk 0:02:19]}  Nc5 {[%clk 0:02:01]} 19. Nxg7 {[%clk 0:02:11]}  Na4 {[%clk 0:02:01]} 20. Be4 {[%clk 0:02:06]}  Rxd1 {[%clk 0:01:46]} 21. Rxd1 {[%clk 0:02:06]}  Nxb2 {[%clk 0:01:47]} 22. Rb1 {[%clk 0:02:00]}  Na4 {[%clk 0:01:45]} 23. Bxh7 {[%clk 0:01:58]}  Nxc3 {[%clk 0:01:44]} 24. Rb2 {[%clk 0:01:50]}  Nd4 {[%clk 0:01:43]} 25. Bd3 {[%clk 0:01:23]}  b5 {[%clk 0:01:32]} 26. Nf5 {[%clk 0:01:20]}  Rd8 {[%clk 0:01:27]} 27. Nxd4 {[%clk 0:01:15]}  Rxd4 {[%clk 0:01:26]} 28. Bf1 {[%clk 0:01:14]}  a5 {[%clk 0:01:25]} 29. g3 {[%clk 0:01:13]}  b4 {[%clk 0:01:24]} 30. h4 {[%clk 0:01:12]}  Kd7 {[%clk 0:01:25]} 31. h5 {[%clk 0:01:12]}  Ke7 {[%clk 0:01:25]} 32. f3 {[%clk 0:01:04]}  Kf6 {[%clk 0:01:24]} 33. Kf2 {[%clk 0:01:04]}  Kg5 {[%clk 0:01:23]} 34. Be2 {[%clk 0:00:56]}  Kxh5 {[%clk 0:01:13]} 35. Ke3 {[%clk 0:00:41]}  Kg6 {[%clk 0:01:11]} 36. Bd3+ {[%clk 0:00:38]}  f5 {[%clk 0:01:10]} 37. Rd2 {[%clk 0:00:34]}  Kf6 {[%clk 0:01:08]} 38. f4 {[%clk 0:00:24]}  Nd5+ {[%clk 0:01:07]} 39. Ke2 {[%clk 0:00:20]}  e4 {[%clk 0:01:07]} 40. Bc2 {[%clk 0:00:17]}  Nc3+ {[%clk 0:01:07]} 0-1


[Site "https://www.chess.com"]

[Event "Titled Tuesday Blitz April 19 Late 2022"]
[White "Lehtosaari, Mauri"]
[Black "Zanette, Edgard Vinicius"]
[WhiteFideId "501999"]
[BlackFideId "2109263"]
[WhiteElo "2482"]
[BlackElo "2182"]
[Result "0-1"]
[Round "02"]
[TimeControl "180+1"]
[Date "2022.04.19"]
[WhiteClock "0:00:03"]
[BlackClock "0:00:05"]

1. d4 {[%clk 0:03:00]}  Nf6 {[%clk 0:02:59]} 2. Nf3 {[%clk 0:03:00]}  c5 {[%clk 0:02:58]} 3. c3 {[%clk 0:03:00]}  e6 {[%clk 0:02:58]} 4. Bg5 {[%clk 0:02:59]}  d5 {[%clk 0:02:51]} 5. e3 {[%clk 0:02:59]}  Be7 {[%clk 0:02:50]} 6. Nbd2 {[%clk 0:02:59]}  Nbd7 {[%clk 0:02:50]} 7. Bd3 {[%clk 0:02:59]}  h6 {[%clk 0:02:48]} 8. Bh4 {[%clk 0:02:59]}  b6 {[%clk 0:02:48]} 9. O-O {[%clk 0:02:58]}  Bb7 {[%clk 0:02:48]} 10. Ne5 {[%clk 0:02:58]}  Nxe5 {[%clk 0:02:42]} 11. dxe5 {[%clk 0:02:59]}  Nd7 {[%clk 0:02:41]} 12. Bxe7 {[%clk 0:02:55]}  Qxe7 {[%clk 0:02:41]} 13. f4 {[%clk 0:02:56]}  O-O-O {[%clk 0:02:36]} 14. Qa4 {[%clk 0:02:53]}  Kb8 {[%clk 0:02:34]} 15. b4 {[%clk 0:02:43]}  c4 {[%clk 0:02:33]} 16. Be2 {[%clk 0:02:37]}  f6 {[%clk 0:02:32]} 17. Nf3 {[%clk 0:02:32]}  fxe5 {[%clk 0:02:27]} 18. fxe5 {[%clk 0:02:30]}  g5 {[%clk 0:02:14]} 19. Qc2 {[%clk 0:01:51]}  g4 {[%clk 0:02:05]} 20. Nd4 {[%clk 0:01:51]}  Nxe5 {[%clk 0:02:03]} 21. Rf4 {[%clk 0:01:45]}  h5 {[%clk 0:01:48]} 22. Raf1 {[%clk 0:01:41]}  Rdg8 {[%clk 0:01:38]} 23. Rf6 {[%clk 0:01:36]}  Bc8 {[%clk 0:01:30]} 24. a4 {[%clk 0:01:29]}  Bd7 {[%clk 0:01:28]} 25. a5 {[%clk 0:01:24]}  b5 {[%clk 0:01:23]} 26. a6 {[%clk 0:01:24]}  h4 {[%clk 0:01:17]} 27. Kh1 {[%clk 0:00:39]}  g3 {[%clk 0:01:14]} 28. h3 {[%clk 0:00:39]}  Rf8 {[%clk 0:01:12]} 29. R6f4 {[%clk 0:00:35]}  Qg7 {[%clk 0:00:46]} 30. e4 {[%clk 0:00:24]}  Rxf4 {[%clk 0:00:42]} 31. Rxf4 {[%clk 0:00:24]}  Rf8 {[%clk 0:00:29]} 32. Qd2 {[%clk 0:00:23]}  Ng6 {[%clk 0:00:28]} 33. Rxf8+ {[%clk 0:00:21]}  Qxf8 {[%clk 0:00:28]} 34. Bf3 {[%clk 0:00:20]}  Qf4 {[%clk 0:00:27]} 35. Qxf4+ {[%clk 0:00:16]}  Nxf4 {[%clk 0:00:28]} 36. exd5 {[%clk 0:00:17]}  exd5 {[%clk 0:00:28]} 37. Kg1 {[%clk 0:00:17]}  Kc7 {[%clk 0:00:28]} 38. Kf1 {[%clk 0:00:17]}  Kb6 {[%clk 0:00:25]} 39. Ke1 {[%clk 0:00:17]}  Kxa6 {[%clk 0:00:24]} 40. Kd2 {[%clk 0:00:18]}  Kb6 {[%clk 0:00:20]} 41. Ke3 {[%clk 0:00:18]}  Nd3 {[%clk 0:00:15]} 42. Bxd5 {[%clk 0:00:17]}  a5 {[%clk 0:00:14]} 43. bxa5+ {[%clk 0:00:18]}  Kxa5 {[%clk 0:00:15]} 44. Nf3 {[%clk 0:00:15]}  Nc1 {[%clk 0:00:06]} 45. Nxh4 {[%clk 0:00:14]}  Na2 {[%clk 0:00:07]} 46. Kd4 {[%clk 0:00:14]}  Kb6 {[%clk 0:00:06]} 47. Ng6 {[%clk 0:00:13]}  Nc1 {[%clk 0:00:05]} 48. h4 {[%clk 0:00:12]}  Bf5 {[%clk 0:00:05]} 49. Ne7 {[%clk 0:00:11]}  Ne2+ {[%clk 0:00:06]} 50. Ke3 {[%clk 0:00:11]}  Bd3 {[%clk 0:00:05]} 51. h5 {[%clk 0:00:10]}  Nxc3 {[%clk 0:00:05]} 52. Bf3 {[%clk 0:00:09]}  Kc5 {[%clk 0:00:05]} 53. h6 {[%clk 0:00:10]}  Bh7 {[%clk 0:00:05]} 54. Bg4 {[%clk 0:00:08]}  b4 {[%clk 0:00:05]} 55. Bf5 {[%clk 0:00:08]}  Nd5+ {[%clk 0:00:05]} 56. Nxd5 {[%clk 0:00:06]}  Bxf5 {[%clk 0:00:05]} 57. Ne7 {[%clk 0:00:05]}  Bh7 {[%clk 0:00:05]} 58. Kd2 {[%clk 0:00:03]}  c3+ {[%clk 0:00:05]} 59. Ke2 {[%clk 0:00:03]}  b3 {[%clk 0:00:05]} 0-1


[Site "https://www.chess.com"]

[Event "Titled Tuesday Blitz April 19 Late 2022"]
[White "Leitao, Rafael"]
[Black "Esipenko, Andrey"]
[WhiteFideId "2101246"]
[BlackFideId "24175439"]
[WhiteElo "2609"]
[BlackElo "2617"]
[Result "0-1"]
[Round "02"]
[TimeControl "180+1"]
[Date "2022.04.19"]
[WhiteClock "0:00:03"]
[BlackClock "0:00:03"]

1. e4 {[%clk 0:03:00]}  e5 {[%clk 0:02:59]} 2. Nf3 {[%clk 0:02:59]}  Nc6 {[%clk 0:02:59]} 3. Bb5 {[%clk 0:02:59]}  Nf6 {[%clk 0:02:59]} 4. O-O {[%clk 0:02:57]}  Nxe4 {[%clk 0:02:56]} 5. d4 {[%clk 0:02:57]}  exd4 {[%clk 0:02:53]} 6. Re1 {[%clk 0:02:51]}  f5 {[%clk 0:02:54]} 7. Nxd4 {[%clk 0:02:47]}  Nxd4 {[%clk 0:02:54]} 8. Qxd4 {[%clk 0:02:44]}  c6 {[%clk 0:02:54]} 9. Bd3 {[%clk 0:02:41]}  Kf7 {[%clk 0:02:37]} 10. Bxe4 {[%clk 0:02:29]}  fxe4 {[%clk 0:02:37]} 11. Qxe4 {[%clk 0:02:29]}  d5 {[%clk 0:02:32]} 12. Qf4+ {[%clk 0:02:16]}  Kg8 {[%clk 0:02:29]} 13. Qg3 {[%clk 0:01:52]}  Bf5 {[%clk 0:02:25]} 14. Bf4 {[%clk 0:01:45]}  Bxc2 {[%clk 0:02:24]} 15. Nd2 {[%clk 0:01:44]}  h6 {[%clk 0:02:04]} 16. Rac1 {[%clk 0:01:25]}  Bf5 {[%clk 0:01:53]} 17. Nf3 {[%clk 0:01:24]}  Kh7 {[%clk 0:01:48]} 18. Nh4 {[%clk 0:01:21]}  Qd7 {[%clk 0:01:47]} 19. Re5 {[%clk 0:01:17]}  Be4 {[%clk 0:01:33]} 20. f3 {[%clk 0:01:05]}  Bd3 {[%clk 0:01:31]} 21. Rc3 {[%clk 0:00:55]}  Bb1 {[%clk 0:01:26]} 22. Rc1 {[%clk 0:00:55]}  Bd3 {[%clk 0:01:12]} 23. Rc3 {[%clk 0:00:55]}  Bb1 {[%clk 0:01:00]} 24. Rc1 {[%clk 0:00:55]}  Bxa2 {[%clk 0:01:00]} 25. Bxh6 {[%clk 0:00:35]}  Kg8 {[%clk 0:00:48]} 26. Nf5 {[%clk 0:00:28]}  Rh7 {[%clk 0:00:38]} 27. Rce1 {[%clk 0:00:20]}  d4 {[%clk 0:00:22]} 28. Qg6 {[%clk 0:00:18]}  Qf7 {[%clk 0:00:17]} 29. Qg4 {[%clk 0:00:14]}  d3 {[%clk 0:00:15]} 30. Re7 {[%clk 0:00:14]}  Bxe7 {[%clk 0:00:12]} 31. Rxe7 {[%clk 0:00:12]}  d2 {[%clk 0:00:06]} 32. Bxd2 {[%clk 0:00:12]}  Qf8 {[%clk 0:00:04]} 33. Bc3 {[%clk 0:00:12]}  Bf7 {[%clk 0:00:05]} 34. Rd7 {[%clk 0:00:06]}  Re8 {[%clk 0:00:05]} 35. h4 {[%clk 0:00:06]}  Re6 {[%clk 0:00:04]} 36. Qg5 {[%clk 0:00:04]}  Kh8 {[%clk 0:00:02]} 37. Rd8 {[%clk 0:00:04]}  Re8 {[%clk 0:00:03]} 38. Nxg7 {[%clk 0:00:05]}  Rxg7 {[%clk 0:00:03]} 39. Qh6+ {[%clk 0:00:03]}  Kg8 {[%clk 0:00:03]} 0-1


[Site "https://www.chess.com"]

[Event "Titled Tuesday Blitz April 19 Late 2022"]
[White "Lewtak, Damian"]
[Black "Petrova, Irina"]
[WhiteFideId "1141724"]
[BlackFideId "14124122"]
[WhiteElo "2362"]
[BlackElo "1993"]
[Result "1-0"]
[Round "02"]
[TimeControl "180+1"]
[Date "2022.04.19"]
[WhiteClock "0:00:55"]
[BlackClock "0:00:02"]

1. a3 {[%clk 0:03:00]}  d6 {[%clk 0:02:58]} 2. d4 {[%clk 0:03:00]}  g6 {[%clk 0:02:55]} 3. g3 {[%clk 0:03:00]}  Bg7 {[%clk 0:02:56]} 4. Bg2 {[%clk 0:03:00]}  Nf6 {[%clk 0:02:56]} 5. e4 {[%clk 0:03:00]}  O-O {[%clk 0:02:55]} 6. Nc3 {[%clk 0:03:01]}  Nc6 {[%clk 0:02:55]} 7. Nf3 {[%clk 0:03:00]}  e5 {[%clk 0:02:51]} 8. dxe5 {[%clk 0:03:00]}  Nxe5 {[%clk 0:02:45]} 9. Nxe5 {[%clk 0:03:00]}  dxe5 {[%clk 0:02:46]} 10. Qxd8 {[%clk 0:03:01]}  Rxd8 {[%clk 0:02:46]} 11. h3 {[%clk 0:03:01]}  c6 {[%clk 0:02:46]} 12. Be3 {[%clk 0:03:01]}  Be6 {[%clk 0:02:45]} 13. Rd1 {[%clk 0:03:01]}  Nd7 {[%clk 0:02:41]} 14. Rd2 {[%clk 0:02:49]}  Nb6 {[%clk 0:02:41]} 15. Bf1 {[%clk 0:02:29]}  Rxd2 {[%clk 0:02:37]} 16. Kxd2 {[%clk 0:02:30]}  Nc4+ {[%clk 0:02:30]} 17. Bxc4 {[%clk 0:02:30]}  Bxc4 {[%clk 0:02:31]} 18. b3 {[%clk 0:02:29]}  Be6 {[%clk 0:02:30]} 19. Kc1 {[%clk 0:02:27]}  Bf8 {[%clk 0:02:30]} 20. Kb2 {[%clk 0:02:27]}  b6 {[%clk 0:02:23]} 21. g4 {[%clk 0:02:23]}  Be7 {[%clk 0:02:21]} 22. Rd1 {[%clk 0:02:22]}  Rd8 {[%clk 0:02:20]} 23. Rxd8+ {[%clk 0:02:22]}  Bxd8 {[%clk 0:02:21]} 24. b4 {[%clk 0:02:20]}  f6 {[%clk 0:02:16]} 25. a4 {[%clk 0:02:13]}  Kf7 {[%clk 0:02:16]} 26. b5 {[%clk 0:02:12]}  cxb5 {[%clk 0:01:59]} 27. axb5 {[%clk 0:02:06]}  Ke7 {[%clk 0:01:56]} 28. Nd5+ {[%clk 0:02:05]}  Kd6 {[%clk 0:01:51]} 29. c4 {[%clk 0:02:05]}  f5 {[%clk 0:01:43]} 30. f3 {[%clk 0:02:03]}  fxe4 {[%clk 0:01:34]} 31. fxe4 {[%clk 0:02:03]}  h5 {[%clk 0:01:33]} 32. Kc3 {[%clk 0:01:46]}  hxg4 {[%clk 0:01:32]} 33. hxg4 {[%clk 0:01:46]}  Bxg4 {[%clk 0:01:31]} 34. Nb4 {[%clk 0:01:46]}  Bd7 {[%clk 0:01:28]} 35. Kd3 {[%clk 0:01:46]}  g5 {[%clk 0:01:28]} 36. Ke2 {[%clk 0:01:44]}  g4 {[%clk 0:01:27]} 37. Kf2 {[%clk 0:01:42]}  Bh4+ {[%clk 0:01:24]} 38. Kg2 {[%clk 0:01:42]}  Be1 {[%clk 0:01:18]} 39. Nd5 {[%clk 0:01:41]}  Be6 {[%clk 0:01:12]} 40. Bg5 {[%clk 0:01:35]}  Bxd5 {[%clk 0:01:09]} 41. exd5 {[%clk 0:01:31]}  e4 {[%clk 0:01:03]} 42. Bf4+ {[%clk 0:01:30]}  Kd7 {[%clk 0:01:02]} 43. Kf1 {[%clk 0:01:29]}  Bb4 {[%clk 0:00:57]} 44. Kf2 {[%clk 0:01:29]}  Bd6 {[%clk 0:00:42]} 45. Bg5 {[%clk 0:01:28]}  g3+ {[%clk 0:00:30]} 46. Kg2 {[%clk 0:01:27]}  Be5 {[%clk 0:00:30]} 47. Bh4 {[%clk 0:01:26]}  e3 {[%clk 0:00:24]} 48. Bxg3 {[%clk 0:01:24]}  e2 {[%clk 0:00:24]} 49. Be1 {[%clk 0:01:23]}  Bd4 {[%clk 0:00:15]} 50. Kf3 {[%clk 0:01:18]}  Kd6 {[%clk 0:00:15]} 51. Kxe2 {[%clk 0:01:18]}  Kc5 {[%clk 0:00:13]} 52. Kd3 {[%clk 0:01:18]}  Be5 {[%clk 0:00:13]} 53. Bf2+ {[%clk 0:01:18]}  Kd6 {[%clk 0:00:13]} 54. Bh4 {[%clk 0:01:16]}  Bf4 {[%clk 0:00:12]} 55. Bf6 {[%clk 0:01:15]}  Bg3 {[%clk 0:00:11]} 56. Bb2 {[%clk 0:01:15]}  Bf4 {[%clk 0:00:10]} 57. Ke4 {[%clk 0:01:14]}  Bg3 {[%clk 0:00:09]} 58. Bc1 {[%clk 0:01:11]}  Be1 {[%clk 0:00:06]} 59. Ba3+ {[%clk 0:01:10]}  Kd7 {[%clk 0:00:06]} 60. c5 {[%clk 0:01:03]}  bxc5 {[%clk 0:00:03]} 61. Bxc5 {[%clk 0:01:04]}  Ba5 {[%clk 0:00:03]} 62. Bxa7 {[%clk 0:01:03]}  Kd6 {[%clk 0:00:03]} 63. b6 {[%clk 0:00:56]}  Bxb6 {[%clk 0:00:01]} 64. Bxb6 {[%clk 0:00:55]}  Kd7 {[%clk 0:00:02]} 65. Ke5 {[%clk 0:00:55]} 1-0


[Site "https://www.chess.com"]

[Event "Titled Tuesday Blitz April 19 Late 2022"]
[White "Lin, Dachey"]
[Black "Perrine, Dalton"]
[WhiteFideId "2029650"]
[BlackFideId "2048434"]
[WhiteElo "2313"]
[BlackElo "2465"]
[Result "1-0"]
[Round "02"]
[TimeControl "180+1"]
[Date "2022.04.19"]
[WhiteClock "0:00:48"]
[BlackClock "0:00:04"]

1. g4 {[%clk 0:03:00]}  d5 {[%clk 0:02:51]} 2. Bg2 {[%clk 0:02:59]}  c6 {[%clk 0:02:52]} 3. g5 {[%clk 0:02:58]}  e5 {[%clk 0:02:52]} 4. d4 {[%clk 0:02:57]}  e4 {[%clk 0:02:46]} 5. f3 {[%clk 0:02:58]}  h6 {[%clk 0:02:25]} 6. fxe4 {[%clk 0:02:49]}  dxe4 {[%clk 0:02:26]} 7. Nc3 {[%clk 0:02:44]}  hxg5 {[%clk 0:02:16]} 8. Nxe4 {[%clk 0:02:43]}  g4 {[%clk 0:02:15]} 9. Bf4 {[%clk 0:02:36]}  f5 {[%clk 0:01:51]} 10. Ng3 {[%clk 0:02:26]}  Bd6 {[%clk 0:01:43]} 11. Qd2 {[%clk 0:02:24]}  Ne7 {[%clk 0:01:18]} 12. O-O-O {[%clk 0:02:13]}  Ng6 {[%clk 0:01:17]} 13. Bxd6 {[%clk 0:02:11]}  Qxd6 {[%clk 0:01:17]} 14. e4 {[%clk 0:02:07]}  f4 {[%clk 0:01:15]} 15. e5 {[%clk 0:01:59]}  Qe7 {[%clk 0:00:55]} 16. Ne4 {[%clk 0:01:57]}  O-O {[%clk 0:00:46]} 17. h3 {[%clk 0:01:43]}  f3 {[%clk 0:00:46]} 18. Bf1 {[%clk 0:01:43]}  Bf5 {[%clk 0:00:47]} 19. Nd6 {[%clk 0:01:34]}  g3 {[%clk 0:00:17]} 20. Nxf3 {[%clk 0:01:34]}  Nd7 {[%clk 0:00:14]} 21. Ng5 {[%clk 0:01:29]}  Nb6 {[%clk 0:00:12]} 22. h4 {[%clk 0:01:24]}  Rad8 {[%clk 0:00:08]} 23. Nxf5 {[%clk 0:01:13]}  Rxf5 {[%clk 0:00:09]} 24. Bh3 {[%clk 0:01:12]}  Rf4 {[%clk 0:00:08]} 25. Ne6 {[%clk 0:01:11]}  Rxh4 {[%clk 0:00:07]} 26. Nxd8 {[%clk 0:01:10]}  Qxd8 {[%clk 0:00:07]} 27. Qd3 {[%clk 0:01:09]}  Nf4 {[%clk 0:00:06]} 28. Qf5 {[%clk 0:01:01]}  g6 {[%clk 0:00:05]} 29. Qe4 {[%clk 0:00:49]}  Nxh3 {[%clk 0:00:06]} 30. Qxg6+ {[%clk 0:00:49]}  Kh8 {[%clk 0:00:04]} 31. Qxg3 {[%clk 0:00:48]} 1-0


[Site "https://www.chess.com"]

[Event "Titled Tuesday Blitz April 19 Late 2022"]
[White "Martinez Reyes, Pedro Ramon"]
[Black "Zhou, Qiyu"]
[WhiteFideId "3901807"]
[BlackFideId "505161"]
[WhiteElo "2410"]
[BlackElo "1925"]
[Result "1-0"]
[Round "02"]
[TimeControl "180+1"]
[Date "2022.04.19"]
[WhiteClock "0:02:16"]
[BlackClock "0:02:09"]

1. g4 {[%clk 0:03:00]}  d5 {[%clk 0:02:59]} 2. Bg2 {[%clk 0:03:00]}  Bxg4 {[%clk 0:02:56]} 3. c4 {[%clk 0:03:00]}  c6 {[%clk 0:02:53]} 4. cxd5 {[%clk 0:02:56]}  cxd5 {[%clk 0:02:51]} 5. Nc3 {[%clk 0:02:57]}  Be6 {[%clk 0:02:45]} 6. Nh3 {[%clk 0:02:51]}  Bxh3 {[%clk 0:02:42]} 7. Bxh3 {[%clk 0:02:51]}  Nf6 {[%clk 0:02:42]} 8. Qb3 {[%clk 0:02:49]}  e6 {[%clk 0:02:26]} 9. Qxb7 {[%clk 0:02:43]}  Nbd7 {[%clk 0:02:26]} 10. d4 {[%clk 0:02:41]}  Bd6 {[%clk 0:02:22]} 11. Qc6 {[%clk 0:02:32]}  Qc7 {[%clk 0:02:18]} 12. Qxa8+ {[%clk 0:02:31]}  Nb8 {[%clk 0:02:15]} 13. Bd2 {[%clk 0:02:21]}  Nd7 {[%clk 0:02:15]} 14. Nb5 {[%clk 0:02:21]}  Qb6 {[%clk 0:02:09]} 15. Qb7 {[%clk 0:02:16]} 1-0


[Site "https://www.chess.com"]